Workbook

Sheet Лист1
A1: Школа | C1: Курашимский филиал МАОУ "Платошинская средняя школа" | F1: Утвердил: | G1: должность | H1: директор
A2: Типовое примерное меню приготавливаемых блюд | G2: фамилия | H2: Козлова Е.Л.
A3: Возрастная категория | E3: 7-11 лет | G3: дата | H3: 10 | I3: 11 | J3: 2023
H4: день | I4: месяц | J4: год
A5: Неделя | B5: День недели | C5: Прием пищи | D5: Раздел меню | E5: Блюда | F5: Вес блюда, г | G5: Белки | H5: Жиры | I5: Углеводы | J5: Калорийность | K5: № рецептуры | L5: Цена
A6: 1 | B6: 1 | C6: Завтрак | D6: гор.блюдо | E6: Каша "Дружба" | F6: 200 | G6: 5 | H6: 7 | I6: 28 | J6: 205 | K6: 226/18 | L6: 35
D8: гор.напиток | E8: Чай с сахаром | F8: 200 | G8: 0 | H8: 0 | I8: 15 | J8: 60 | K8: 457/18 | L8: 11.06
D9: хлеб | E9: Хлеб пшеничный | F9: 20 | G9: 1 | H9: 0 | I9: 10 | J9: 47 | K9: 108/13 | L9: 2.7
D10: фрукты | E10: Яблоко | F10: 100 | G10: 0 | H10: 0 | I10: 10 | J10: 47 | K10: 112/13 | L10: 25
D11: хлеб | E11: Бутерброд с повидлом (1-й вариант) | F11: 45 | G11: 1 | H11: 3 | I11: 24 | J11: 134 | K11: 72/18 | L11: 18
D13: итого | F13: =SUM(F6:F12) -> 565 | G13: =SUM(G6:G12) -> 7 | H13: =SUM(H6:H12) -> 10 | I13: =SUM(I6:I12) -> 87 | J13: =SUM(J6:J12) -> 493 | L13: =SUM(L6:L12) -> 91.76
A14: =A6 -> 1 | B14: =B6 -> 1 | C14: Обед | D14: закуска
D15: 1 блюдо
D16: 2 блюдо
D17: гарнир
D18: напиток
D19: хлеб бел.
D20: хлеб черн.
D23: итого | F23: =SUM(F14:F22) -> 0 | G23: =SUM(G14:G22) -> 0 | H23: =SUM(H14:H22) -> 0 | I23: =SUM(I14:I22) -> 0 | J23: =SUM(J14:J22) -> 0 | L23: =SUM(L14:L22) -> 0
A24: =A6 -> 1 | B24: =B6 -> 1 | C24: Итого за день: | F24: =F13+F23 -> 565 | G24: =G13+G23 -> 7 | H24: =H13+H23 -> 10 | I24: =I13+I23 -> 87 | J24: =J13+J23 -> 493 | L24: =L13+L23 -> 91.76
A25: 1 | B25: 2 | C25: Завтрак | D25: гор.блюдо | E25: Омлет натуральный | F25: 160 | G25: 14 | H25: 15 | I25: 3 | J25: 209 | K25: 268/18 | L25: 45
D26: закуска | E26: Овощи консервированные отварные | F26: 60 | G26: 2 | H26: 2 | I26: 3 | J26: 38 | K26: 157/18 | L26: 17
D27: гор.напиток | E27: Какао с молоком | F27: 200 | G27: 4 | H27: 3 | I27: 25 | J27: 144 | K27: 462/18 | L27: 15.51
D28: хлеб | E28: Хлеб пшеничный | F28: 40 | G28: 3 | H28: 0 | I28: 20 | J28: 94 | K28: 108/13 | L28: 2.94
D29: фрукты
D30: булочное | E30: Кондитерское изделие (печенье) | F30: 40 | G30: 3 | H30: 4 | I30: 30 | J30: 167 | K30: 589/13 | L30: 11.31
D32: итого | F32: =SUM(F25:F31) -> 500 | G32: =SUM(G25:G31) -> 26 | H32: =SUM(H25:H31) -> 24 | I32: =SUM(I25:I31) -> 81 | J32: =SUM(J25:J31) -> 652 | L32: =SUM(L25:L31) -> 91.76
A33: =A25 -> 1 | B33: =B25 -> 2 | C33: Обед | D33: закуска
D34: 1 блюдо
D35: 2 блюдо
D36: гарнир
D37: напиток
D38: хлеб бел.
D39: хлеб черн.
D42: итого | F42: =SUM(F33:F41) -> 0 | G42: =SUM(G33:G41) -> 0 | H42: =SUM(H33:H41) -> 0 | I42: =SUM(I33:I41) -> 0 | J42: =SUM(J33:J41) -> 0 | L42: =SUM(L33:L41) -> 0
A43: =A25 -> 1 | B43: =B25 -> 2 | C43: Итого за день: | F43: =F32+F42 -> 500 | G43: =G32+G42 -> 26 | H43: =H32+H42 -> 24 | I43: =I32+I42 -> 81 | J43: =J32+J42 -> 652 | L43: =L32+L42 -> 91.76
A44: 1 | B44: 3 | C44: Завтрак | D44: гор.блюдо | E44: Котлета "Школьная" | F44: 90 | G44: 13 | H44: 10 | I44: 11 | J44: 189 | K44: 347/18 | L44: 50
D45: гор.блюдо | E45: Макаронные изделия отварные | F45: 150 | G45: 5 | H45: 3 | I45: 29 | J45: 145 | K45: 291/13 | L45: 21.56
D46: гор.напиток | E46: Чай с лимоном | F46: 200 | G46: 0 | H46: 0 | I46: 9 | J46: 40 | K46: 459/18 | L46: 15
D47: хлеб | E47: Хлеб пшеничный | F47: 60 | G47: 5 | H47: 0 | I47: 30 | J47: 141 | K47: 108/13 | L47: 5.2
D48: фрукты
D51: итого | F51: =SUM(F44:F50) -> 500 | G51: =SUM(G44:G50) -> 23 | H51: =SUM(H44:H50) -> 13 | I51: =SUM(I44:I50) -> 79 | J51: =SUM(J44:J50) -> 515 | L51: =SUM(L44:L50) -> 91.76
A52: =A44 -> 1 | B52: =B44 -> 3 | C52: Обед | D52: закуска
D53: 1 блюдо
D54: 2 блюдо
D55: гарнир
D56: напиток
D57: хлеб бел.
D58: хлеб черн.
D61: итого | F61: =SUM(F52:F60) -> 0 | G61: =SUM(G52:G60) -> 0 | H61: =SUM(H52:H60) -> 0 | I61: =SUM(I52:I60) -> 0 | J61: =SUM(J52:J60) -> 0 | L61: =SUM(L52:L60) -> 0
A62: =A44 -> 1 | B62: =B44 -> 3 | C62: Итого за день: | F62: =F51+F61 -> 500 | G62: =G51+G61 -> 23 | H62: =H51+H61 -> 13 | I62: =I51+I61 -> 79 | J62: =J51+J61 -> 515 | L62: =L51+L61 -> 91.76
A63: 1 | B63: 4 | C63: Завтрак | D63: гор.блюдо | E63: Каша пшеничная молочная жидкая | F63: 200 | G63: 5 | H63: 6 | I63: 26 | J63: 181 | K63: 230/18 | L63: 37
D65: гор.напиток | E65: Кофейный напиток с молоком | F65: 200 | G65: 3 | H65: 3 | I65: 19 | J65: 115 | K65: 465/18 | L65: 20
D66: хлеб | E66: Хлеб пшеничный | F66: 40 | G66: 3 | H66: 0 | I66: 20 | J66: 94 | K66: 108/13 | L66: 2.82
D67: фрукты
D68: булочное | E68: Булочка Российская | F68: 80 | G68: 6 | H68: 7 | I68: 37 | J68: 271 | K68: 544/18 | L68: 31.94
D70: итого | F70: =SUM(F63:F69) -> 520 | G70: =SUM(G63:G69) -> 17 | H70: =SUM(H63:H69) -> 16 | I70: =SUM(I63:I69) -> 102 | J70: =SUM(J63:J69) -> 661 | L70: =SUM(L63:L69) -> 91.76
A71: =A63 -> 1 | B71: =B63 -> 4 | C71: Обед | D71: закуска
D72: 1 блюдо
D73: 2 блюдо
D74: гарнир
D75: напиток
D76: хлеб бел.
D77: хлеб черн.
D80: итого | F80: =SUM(F71:F79) -> 0 | G80: =SUM(G71:G79) -> 0 | H80: =SUM(H71:H79) -> 0 | I80: =SUM(I71:I79) -> 0 | J80: =SUM(J71:J79) -> 0 | L80: =SUM(L71:L79) -> 0
A81: =A63 -> 1 | B81: =B63 -> 4 | C81: Итого за день: | F81: =F70+F80 -> 520 | G81: =G70+G80 -> 17 | H81: =H70+H80 -> 16 | I81: =I70+I80 -> 102 | J81: =J70+J80 -> 661 | L81: =L70+L80 -> 91.76
A82: 1 | B82: 5 | C82: Завтрак | D82: гор.блюдо | E82: Биточек из птицы | F82: 90 | G82: 14 | H82: 9 | I82: 6 | J82: 165 | K82: 372/18 | L82: 45
D83: гор.блюдо | E83: Пюре картофельное | F83: 150 | G83: 3 | H83: 6 | I83: 9 | J83: 102 | K83: 377/18 | L83: 20
D84: гор.напиток | E84: Чай каркаде | F84: 200 | G84: 0 | H84: 0 | I84: 14 | J84: 56 | K84: 461/18 | L84: 10.44
D85: хлеб | E85: Хлеб пшеничный | F85: 40 | G85: 3 | H85: 0 | I85: 20 | J85: 94 | K85: 108/13 | L85: 2.82
D86: фрукты
D87: булочное | E87: Кондитерское изделие | F87: 40 | G87: 1 | H87: 1 | I87: 31 | J87: 140 | K87: 588/13 | L87: 13.5
D89: итого | F89: =SUM(F82:F88) -> 520 | G89: =SUM(G82:G88) -> 21 | H89: =SUM(H82:H88) -> 16 | I89: =SUM(I82:I88) -> 80 | J89: =SUM(J82:J88) -> 557 | L89: =SUM(L82:L88) -> 91.76
A90: =A82 -> 1 | B90: =B82 -> 5 | C90: Обед | D90: закуска
D91: 1 блюдо
D92: 2 блюдо
D93: гарнир
D94: напиток
D95: хлеб бел.
D96: хлеб черн.
D99: итого | F99: =SUM(F90:F98) -> 0 | G99: =SUM(G90:G98) -> 0 | H99: =SUM(H90:H98) -> 0 | I99: =SUM(I90:I98) -> 0 | J99: =SUM(J90:J98) -> 0 | L99: =SUM(L90:L98) -> 0
A100: =A82 -> 1 | B100: =B82 -> 5 | C100: Итого за день: | F100: =F89+F99 -> 520 | G100: =G89+G99 -> 21 | H100: =H89+H99 -> 16 | I100: =I89+I99 -> 80 | J100: =J89+J99 -> 557 | L100: =L89+L99 -> 91.76
A101: 2 | B101: 1 | C101: Завтрак | D101: гор.блюдо | E101: Каша пшенная молочная жидкая | F101: 200 | G101: 5 | H101: 6 | I101: 26 | J101: 199 | K101: 233/18 | L101: 37
D103: гор.напиток | E103: Чай с сахаром | F103: 200 | G103: 0 | H103: 0 | I103: 9 | J103: 38 | K103: 457/18 | L103: 10.5
D104: хлеб | E104: Хлеб пшеничный | F104: 20 | G104: 2 | H104: 0 | I104: 10 | J104: 47 | K104: 108/13 | L104: 2
D105: фрукты | E105: Яблоко | F105: 150 | G105: 1 | H105: 1 | I105: 10 | J105: 66 | K105: 82/18 | L105: 25
D106: хлеб | E106: Бутерброд с сыром | F106: 45 | G106: 7 | H106: 9 | I106: 10 | J106: 153 | K106: 90/13 | L106: 17.26
D108: итого | F108: =SUM(F101:F107) -> 615 | G108: =SUM(G101:G107) -> 15 | H108: =SUM(H101:H107) -> 16 | I108: =SUM(I101:I107) -> 65 | J108: =SUM(J101:J107) -> 503 | L108: =SUM(L101:L107) -> 91.76
A109: =A101 -> 2 | B109: =B101 -> 1 | C109: Обед | D109: закуска
D110: 1 блюдо
D111: 2 блюдо
D112: гарнир
D113: напиток
D114: хлеб бел.
D115: хлеб черн.
D118: итого | F118: =SUM(F109:F117) -> 0 | G118: =SUM(G109:G117) -> 0 | H118: =SUM(H109:H117) -> 0 | I118: =SUM(I109:I117) -> 0 | J118: =SUM(J109:J117) -> 0 | L118: =SUM(L109:L117) -> 0
A119: =A101 -> 2 | B119: =B101 -> 1 | C119: Итого за день: | F119: =F108+F118 -> 615 | G119: =G108+G118 -> 15 | H119: =H108+H118 -> 16 | I119: =I108+I118 -> 65 | J119: =J108+J118 -> 503 | L119: =L108+L118 -> 91.76
A120: 2 | B120: 2 | C120: Завтрак | D120: гор.блюдо | E120: Кнели из птицы с рисом | F120: 90 | G120: 15 | H120: 17 | I120: 6 | J120: 240 | K120: 371/18 | L120: 50
D121: гор.блюдо | E121: Каша гречневая рассыпчатая | F121: 150 | G121: 6 | H121: 6 | I121: 10 | J121: 173 | K121: 202/18 | L121: 23
D122: гор.напиток | E122: Чай с лимоном | F122: 200 | G122: 0 | H122: 0 | I122: 15 | J122: 40 | K122: 459/18 | L122: 13.76
D123: хлеб | E123: Хлеб пшеничный | F123: 60 | G123: 5 | H123: 0 | I123: 30 | J123: 141 | K123: 108/13 | L123: 5
D124: фрукты
D127: итого | F127: =SUM(F120:F126) -> 500 | G127: =SUM(G120:G126) -> 26 | H127: =SUM(H120:H126) -> 23 | I127: =SUM(I120:I126) -> 61 | J127: =SUM(J120:J126) -> 594 | L127: =SUM(L120:L126) -> 91.76
A128: =A120 -> 2 | B128: =B120 -> 2 | C128: Обед | D128: закуска
D129: 1 блюдо
D130: 2 блюдо
D131: гарнир
D132: напиток
D133: хлеб бел.
D134: хлеб черн.
D137: итого | F137: =SUM(F128:F136) -> 0 | G137: =SUM(G128:G136) -> 0 | H137: =SUM(H128:H136) -> 0 | I137: =SUM(I128:I136) -> 0 | J137: =SUM(J128:J136) -> 0 | L137: =SUM(L128:L136) -> 0
A138: =A120 -> 2 | B138: =B120 -> 2 | C138: Итого за день: | F138: =F127+F137 -> 500 | G138: =G127+G137 -> 26 | H138: =H127+H137 -> 23 | I138: =I127+I137 -> 61 | J138: =J127+J137 -> 594 | L138: =L127+L137 -> 91.76
A139: 2 | B139: 3 | C139: Завтрак | D139: гор.блюдо | E139: Каша рисовая молочная жидкая | F139: 200 | G139: 5 | H139: 9 | I139: 79 | J139: 214 | K139: 234/13 | L139: 37
D141: гор.напиток | E141: Кофейный напиток с молоком | F141: 200 | G141: 3 | H141: 3 | I141: 14 | J141: 88 | K141: 465/18 | L141: 18
D142: хлеб | E142: Хлеб пшеничный | F142: 40 | G142: 3 | H142: 0 | I142: 20 | J142: 94 | K142: 108/13 | L142: 2.82
D143: фрукты
D144: сыр | E144: Сыр порциями | F144: 15 | G144: 4 | H144: 4 | I144: 0 | J144: 51 | K144: 100/13 | L144: 11
D145: булочное | E145: Булочка ванильная | F145: 80 | G145: 6 | H145: 6 | I145: 45 | J145: 264 | K145: 563/13 | L145: 22.94
D146: итого | F146: =SUM(F139:F145) -> 535 | G146: =SUM(G139:G145) -> 21 | H146: =SUM(H139:H145) -> 22 | I146: =SUM(I139:I145) -> 158 | J146: =SUM(J139:J145) -> 711 | L146: =SUM(L139:L145) -> 91.76
A147: =A139 -> 2 | B147: =B139 -> 3 | C147: Обед | D147: закуска
D148: 1 блюдо
D149: 2 блюдо
D150: гарнир
D151: напиток
D152: хлеб бел.
D153: хлеб черн.
D156: итого | F156: =SUM(F147:F155) -> 0 | G156: =SUM(G147:G155) -> 0 | H156: =SUM(H147:H155) -> 0 | I156: =SUM(I147:I155) -> 0 | J156: =SUM(J147:J155) -> 0 | L156: =SUM(L147:L155) -> 0
A157: =A139 -> 2 | B157: =B139 -> 3 | C157: Итого за день: | F157: =F146+F156 -> 535 | G157: =G146+G156 -> 21 | H157: =H146+H156 -> 22 | I157: =I146+I156 -> 158 | J157: =J146+J156 -> 711 | L157: =L146+L156 -> 91.76
A158: 2 | B158: 4 | C158: Завтрак | D158: гор.блюдо | E158: Запеканка из творога/молоко сгущенное | F158: 210 | G158: 40 | H158: 14 | I158: 47 | J158: 470 | K158: 279/18 | L158: 64.94
D160: гор.напиток | E160: Чай с сахаром | F160: 200 | G160: 0 | H160: 0 | I160: 9 | J160: 38 | K160: 457/18 | L160: 11
D161: хлеб | E161: Хлеб пшеничный | F161: 40 | G161: 3 | H161: 0 | I161: 20 | J161: 94 | K161: 108/13 | L161: 2.82
D162: фрукты
D163: булочное | E163: Печенье | F163: 50 | G163: 3 | H163: 4 | I163: 30 | J163: 167 | K163: 590/13 | L163: 13
D165: итого | F165: =SUM(F158:F164) -> 500 | G165: =SUM(G158:G164) -> 46 | H165: =SUM(H158:H164) -> 18 | I165: =SUM(I158:I164) -> 106 | J165: =SUM(J158:J164) -> 769 | L165: =SUM(L158:L164) -> 91.76
A166: =A158 -> 2 | B166: =B158 -> 4 | C166: Обед | D166: закуска
D167: 1 блюдо
D168: 2 блюдо
D169: гарнир
D170: напиток
D171: хлеб бел.
D172: хлеб черн.
D175: итого | F175: =SUM(F166:F174) -> 0 | G175: =SUM(G166:G174) -> 0 | H175: =SUM(H166:H174) -> 0 | I175: =SUM(I166:I174) -> 0 | J175: =SUM(J166:J174) -> 0 | L175: =SUM(L166:L174) -> 0
A176: =A158 -> 2 | B176: =B158 -> 4 | C176: Итого за день: | F176: =F165+F175 -> 500 | G176: =G165+G175 -> 46 | H176: =H165+H175 -> 18 | I176: =I165+I175 -> 106 | J176: =J165+J175 -> 769 | L176: =L165+L175 -> 91.76
A177: 2 | B177: 5 | C177: Завтрак | D177: гор.блюдо | E177: Каша пшеничная молочная жидкая | F177: 200 | G177: 5 | H177: 6 | I177: 26 | J177: 181 | K177: 230/18 | L177: 37
D178: гор.блюдо | E178: Яйцо отварное | F178: 55 | G178: 7 | H178: 6 | I178: 0 | J178: 78 | K178: 300/13 | L178: 17.26
D179: гор.напиток | E179: Чай каркаде | F179: 200 | G179: 0 | H179: 0 | I179: 14 | J179: 56 | K179: 461/18 | L179: 15
D180: хлеб | E180: Хлеб пшеничный | F180: 50 | G180: 3 | H180: 0 | I180: 20 | J180: 94 | K180: 108/13 | L180: 4
D181: фрукты
D182: хлеб | E182: Бутерброд с сыром (1-й вариант) | F182: 45 | G182: 7 | H182: 9 | I182: 10 | J182: 153 | K182: 90/13 | L182: 18.5
D184: итого | F184: =SUM(F177:F183) -> 550 | G184: =SUM(G177:G183) -> 22 | H184: =SUM(H177:H183) -> 21 | I184: =SUM(I177:I183) -> 70 | J184: =SUM(J177:J183) -> 562 | L184: =SUM(L177:L183) -> 91.76
A185: =A177 -> 2 | B185: =B177 -> 5 | C185: Обед | D185: закуска
D186: 1 блюдо
D187: 2 блюдо
D188: гарнир
D189: напиток
D190: хлеб бел.
D191: хлеб черн.
D194: итого | F194: =SUM(F185:F193) -> 0 | G194: =SUM(G185:G193) -> 0 | H194: =SUM(H185:H193) -> 0 | I194: =SUM(I185:I193) -> 0 | J194: =SUM(J185:J193) -> 0 | L194: =SUM(L185:L193) -> 0
A195: =A177 -> 2 | B195: =B177 -> 5 | C195: Итого за день: | F195: =F184+F194 -> 550 | G195: =G184+G194 -> 22 | H195: =H184+H194 -> 21 | I195: =I184+I194 -> 70 | J195: =J184+J194 -> 562 | L195: =L184+L194 -> 91.76
C196: Среднее значение за период: | F196: =(F24+F43+F62+F81+F100+F119+F138+F157+F176+F195)/(IF(F24=0, 0, 1)+IF(F43=0, 0, 1)+IF(F62=0, 0, 1)+IF(F81=0, 0, 1)+IF(F100=0, 0, 1)+IF(F119=0, 0, 1)+IF(F138=0, 0, 1)+IF(F157=0, 0, 1)+IF(F176=0, 0, 1)+IF(F195=0, 0, 1)) -> 530.5 | G196: =(G24+G43+G62+G81+G100+G119+G138+G157+G176+G195)/(IF(G24=0, 0, 1)+IF(G43=0, 0, 1)+IF(G62=0, 0, 1)+IF(G81=0, 0, 1)+IF(G100=0, 0, 1)+IF(G119=0, 0, 1)+IF(G138=0, 0, 1)+IF(G157=0, 0, 1)+IF(G176=0, 0, 1)+IF(G195=0, 0, 1)) -> 22.4 | H196: =(H24+H43+H62+H81+H100+H119+H138+H157+H176+H195)/(IF(H24=0, 0, 1)+IF(H43=0, 0, 1)+IF(H62=0, 0, 1)+IF(H81=0, 0, 1)+IF(H100=0, 0, 1)+IF(H119=0, 0, 1)+IF(H138=0, 0, 1)+IF(H157=0, 0, 1)+IF(H176=0, 0, 1)+IF(H195=0, 0, 1)) -> 17.9 | I196: =(I24+I43+I62+I81+I100+I119+I138+I157+I176+I195)/(IF(I24=0, 0, 1)+IF(I43=0, 0, 1)+IF(I62=0, 0, 1)+IF(I81=0, 0, 1)+IF(I100=0, 0, 1)+IF(I119=0, 0, 1)+IF(I138=0, 0, 1)+IF(I157=0, 0, 1)+IF(I176=0, 0, 1)+IF(I195=0, 0, 1)) -> 88.9 | J196: =(J24+J43+J62+J81+J100+J119+J138+J157+J176+J195)/(IF(J24=0, 0, 1)+IF(J43=0, 0, 1)+IF(J62=0, 0, 1)+IF(J81=0, 0, 1)+IF(J100=0, 0, 1)+IF(J119=0, 0, 1)+IF(J138=0, 0, 1)+IF(J157=0, 0, 1)+IF(J176=0, 0, 1)+IF(J195=0, 0, 1)) -> 601.7 | L196: =(L24+L43+L62+L81+L100+L119+L138+L157+L176+L195)/(IF(L24=0, 0, 1)+IF(L43=0, 0, 1)+IF(L62=0, 0, 1)+IF(L81=0, 0, 1)+IF(L100=0, 0, 1)+IF(L119=0, 0, 1)+IF(L138=0, 0, 1)+IF(L157=0, 0, 1)+IF(L176=0, 0, 1)+IF(L195=0, 0, 1)) -> 91.76
